Cogmind - Beta 15 @@@ ROGUE MODE // 2025.10.05 @ 19:37:18 Player: Autumn Result: Destroyed by C-40 Crusher with Compactor Performance ------------- Evolutions (3) 1500 Regions Visited (6) 1200 Robots Destroyed (34) 170 Value Destroyed (1272) 1272 Prototype IDs (5) 100 Alien Tech Used (0) 0 Bonus (0) 0 TOTAL SCORE: 4242 Bonus ------- None Cogmind --------- Core Integrity 0/700 Matter 260/300 Energy 47/100 System Corruption 3% Temperature Cool (2) Movement Hovering (60) Location -7/Waste Parts ------- > --- POWER (1) -------- (None) > --- PROPULSION (3) --- Gravmag System > --- UTILITY (5) ------ Improved Shield Generator > --- WEAPON (4) ------- (None) > --- INVENTORY (5) ---- Improved Cooling System Large Matter Pod (150) Improved Matter Compressor (0) Gatling Laser Peak State ------------ > --- POWER ------------ Light Nuclear Core > --- PROPULSION ------- Carbon-fiber Leg Carbon-fiber Leg > --- UTILITY ---------- Small Storage Unit Large Battery Core Shielding Hardlight Generator > --- WEAPON ----------- Improved EM Shotgun Advanced Beam Rifle Improved Assault Rifle Grenade Launcher > --- INVENTORY -------- Improved Ion Engine Cooling System Large Matter Pod EM Pulse Gun Remote Datajack Stasis Trap [Rating: 27] Favorites ----------- Power Improved Deuterium Engine Engine Improved Deuterium Engine Power Core Light Nuclear Core Propulsion Carbon-fiber Leg Treads Armored Treads Leg Carbon-fiber Leg Hover Unit Gravmag System Utility Small Storage Unit Device Hardlight Generator Storage Small Storage Unit Protection Core Shielding Weapon Gatling Laser Energy Gun Gatling Laser Ballistic Gun Improved Assault Rifle Launcher Grenade Launcher Special Weapon Remote Datajack Build | -11 -10 -9 -9 -8 -7 -7 ------- Run | Yrd Mat Mat Min Mat Fac Was Slots Evolved 6 | . . 2 . 2 2 . Power . | . . . . . . . Propulsion 1 | . . . . . 1 . Utility 3 | . . 1 . 1 1 . Weapon 2 | . . 1 . 1 . . Parts Attached 37 | 4 2 8 . 4 16 3 Power 4 | 1 . 1 . 1 1 . Engine 3 | 1 . 1 . . 1 . Core 1 | . . . . 1 . . Reactor . | . . . . . . . Propulsion 8 | 2 . 2 . . 4 . Treads 1 | . . . . . 1 . Leg 6 | 2 . 2 . . 2 . Wheel . | . . . . . . . Hover 1 | . . . . . 1 . Flight . | . . . . . . . Utility 10 | 1 1 1 . 1 4 2 Device 5 | . . 1 . . 3 1 Storage 4 | 1 . . . 1 1 1 Processor . | . . . . . . . Hackware . | . . . . . . . Protection 1 | . 1 . . . . . Artifact . | . . . . . . . Weapon 15 | . 1 4 . 2 7 1 Energy Gun 10 | . . 3 . 1 5 1 Energy Cannon . | . . . . . . . Ballistic Gun 2 | . . 1 . . 1 . Ballistic Cannon . | . . . . . . . Launcher 2 | . 1 . . 1 . . Special Weapon 1 | . . . . . 1 . Impact Weapon . | . . . . . . . Slashing Weapon . | . . . . . . . Piercing Weapon . | . . . . . . . Special Melee Weapon . | . . . . . . . Unidentified Prototypes 5 | . . 2 . 1 1 1 Parts Lost 25 | . . 1 . . 23 1 Power 3 | . . . . . 3 . Propulsion 4 | . . . . . 4 . Utility 8 | . . . . . 7 1 Weapon 10 | . . 1 . . 9 . Highest Loss Streak 6 | . . 1 . . 6 1 To Critical Strikes . | . . . . . . . Average Backups 5 | 2 5 6 7 5 4 4 Power . | . 1 1 2 1 . . Propulsion . | . . 1 . . . . Utility 2 | . 1 2 3 2 2 2 Weapon 1 | 1 3 . 2 1 1 1 Tool/Special . | . . . . . . . Unused Backups 5 | . . 2 . 1 . 2 Power 1 | . . . . 1 . . Propulsion . | . . . . . . . Utility 3 | . . 1 . . . 2 Weapon 1 | . . 1 . . . . Tool/Special . | . . . . . . . Average Slot Usage (%) 69 | . 70 94 88 97 51 23 Engine 7 | . 14 11 11 3 4 . Treads 1 | . . . . . 3 . Leg 12 | . 28 22 22 18 3 . Device 11 | . . 8 11 9 13 14 Storage 10 | . 14 11 11 18 7 . Protection 5 | . 2 11 11 9 1 . Energy Gun 10 | . . 16 11 15 9 1 Ballistic Gun 3 | . . 2 11 9 1 . Launcher 3 | . 10 10 . 8 . . Peak Build Rating 27 | 4 6 20 19 27 27 18 Average Rating 17 | 3 5 14 19 25 19 11 On Entrance 11 | . 4 6 19 19 27 7 Naked Turns . | . . . . . . . Heaviest Build 32 | 10 14 27 24 32 30 9 Greatest Support 30 | 20 20 30 30 30 30 9 Greatest Overweight (x) 6 | . . . . 1 6 1 Average Overweight (x) . | . . . . . . . Largest Inventory Capacity 8 | 8 8 8 8 8 8 5 Average Capacity 7 | 7 8 8 8 8 7 5 Most Carried 8 | 4 7 8 8 8 8 5 Average Carried 5 | 2 5 6 7 6 4 4 Final Capacity 8 | 8 8 8 8 8 5 5 Final Carried 8 | 4 6 7 8 7 5 4 Class Distribution -------------------- 71% | Mutant 18% | Tank 9% | Bomber Dominant Class ---------------- Mutant | -10/Materials Bomber | -9/Materials Mutant | -9/Mines Tank | -8/Materials Mutant | -7/Factory Mutant | -7/Waste Resources | -11 -10 -9 -9 -8 -7 -7 ----------- Run | Yrd Mat Mat Min Mat Fac Was Matter Collected 1004 | 169 5 185 266 70 309 . Remotely . | . . . . . . . Salvage Created 1030 | . 93 318 . 243 376 . Parts 59 | . 13 22 . 14 10 . Haulers Intercepted 1 | . . 1 . . . . Recyclers Shooed . | . . . . . . . Parts Field Recycled . | . . . . . . . Retrieved Matter . | . . . . . . . Parts Self-Destructed . | . . . . . . . Prevented . | . . . . . . . Kills | -11 -10 -9 -9 -8 -7 -7 ------- Run | Yrd Mat Mat Min Mat Fac Was Combat Hostiles Destroyed 26 | . 3 6 . 9 8 . Guns 14 | . . 4 . 4 6 . AOE 11 | . 3 2 . 5 1 . Classes Destroyed 9 | . 3 4 . 1 1 . Worker 2 | . . 1 . 1 . . Builder 3 | . 2 1 . . . . Hauler 1 | . . 1 . . . . Operator 1 | . 1 . . . . . Watcher 1 | . . 1 . . . . Swarmer 4 | . . . . 4 . . Grunt 14 | . 3 4 . 3 4 . Sentry 5 | . . 2 . 2 1 . Programmer 3 | . . . . . 3 . Best Kill Streak 9 | . 5 5 . 9 2 . Combat Bots Only 8 | . 3 3 . 8 2 . Max Kills in Single Turn 3 | . 2 2 . 3 1 . Gunslinging . | . . . . . . . Exploded 2 | . 2 1 . 2 1 . Melee . | . . . . . . . Uniques/NPCs Destroyed . | . . . . . . . Combat | -11 -10 -9 -9 -8 -7 -7 -------- Run | Yrd Mat Mat Min Mat Fac Was Hostile Shots Fired 435 | . 8 21 . 22 383 1 Missed 185 | . 4 10 . 3 168 . Hits 250 | . 4 11 . 19 215 1 Melee 11 | . . . . . 10 1 Projectile 239 | . 4 11 . 19 205 . Critical Strikes 4 | . . 1 . . 2 1 Damage Taken 2936 | . 42 131 . 249 2466 48 Core 758 | . . 7 . 50 653 48 Absorbed by Shields 243 | . . 32 . . 211 . Redirected to Shielding 51 | . . 1 . 10 40 . Core Remaining (%) 97 | 100 100 . 98 90 . . Volleys Fired 77 | . 6 19 . 8 42 2 Largest 4 | . 1 3 . 4 4 1 Hottest 160 | . 30 110 . 159 160 50 Shots Fired 148 | . 6 38 . 32 70 2 Gun 119 | . . 29 . 24 64 2 Cannon . | . . . . . . . Launcher 28 | . 6 9 . 8 5 . Special 1 | . . . . . 1 . Kinetic 19 | . . 1 . 8 10 . Thermal 46 | . . . . 8 38 . Explosive 28 | . 6 9 . 8 5 . Electromagnetic 54 | . . 28 . 8 16 2 Robot Hit Streak 30 | . 4 7 . 8 30 . Robot Miss Streak 5 | . 2 4 . 3 5 2 Penetration Max . | . . . . . . . Secondary Targets . | . . . . . . . Shots Hit Robots 99 | . 4 21 . 19 55 . Core Hits 73 | . 11 19 . 20 23 . Critical Kills . | . . . . . . . Critical Parts Destroyed . | . . . . . . . Critical Strikes 2 | . . 1 . . 1 . Burn 1 | . . . . . 1 . Corrupt 1 | . . 1 . . . . Melee Attacks . | . . . . . . . Impact . | . . . . . . . Slashing . | . . . . . . . Piercing . | . . . . . . . Sneak Attacks . | . . . . . . . Combat Hostiles . | . . . . . . . Follow-up Attacks . | . . . . . . . Damage Inflicted 2839 | . 484 528 . 638 1189 . Guns 1447 | . . 222 . 245 980 . Cannons . | . . . . . . . Explosions 1367 | . 484 300 . 393 190 . Melee . | . . . . . . . Ramming 25 | . . 6 . . 19 . Kinetic 206 | . . . . 66 140 . Thermal 891 | . 181 . . 80 630 . Explosive 1186 | . 303 300 . 393 190 . Electromagnetic 531 | . . 222 . 99 210 . Impact . | . . . . . . . Slashing . | . . . . . . . Piercing . | . . . . . . . Highest Corruption 3 | . . . . . 3 3 Average Corruption 1 | . . . . . 1 3 Corruption Purged . | . . . . . . . Corruption Blocked . | . . . . . . . Effects 10 | . . . . . 8 2 Message Errors 2 | . . . . . 2 . Matter Fused 1 | . . . . . 1 . Heat Flow Errors 2 | . . . . . 2 . Data Loss (minor) 3 | . . . . . 2 1 Data Loss (major) 1 | . . . . . . 1 Weapon Failures 1 | . . . . . 1 . Overload Shots . | . . . . . . . Overflow Damage 138 | . 111 . . . 27 . Projectiles . | . . . . . . . Explosions 138 | . 111 . . . 27 . Melee . | . . . . . . . Knockbacks 1 | . . . . . 1 . Impact 1 | . . . . . 1 . Kinetic . | . . . . . . . Secondary . | . . . . . . . Self-Inflicted Damage 264 | . . 13 . . 251 . Shots 7 | . . 1 . . 6 . Rammed . | . . . . . . . Targets Rammed 3 | . . 1 . . 2 . Kicked 3 | . . 1 . . 2 . Crushed . | . . . . . . . Highest Temperature 583 | . 1 124 . 583 239 . Average Temperature 121 | . 1 32 . 299 95 . Received Heat Transfer 801 | . 24 53 . 90 634 . Effects 9 | . . . . 9 . . Shutdowns 2 | . . . . 2 . . Energy Bleed 4 | . . . . 4 . . Matter Decay 1 | . . . . 1 . . Damage (minor) 2 | . . . . 2 . . Siege Activations . | . . . . . . . Martial Activations . | . . . . . . . Shielding Activations . | . . . . . . . Robots Disrupted . | . . . . . . . Combat Hostiles . | . . . . . . . Robots Corrupted 1 | . . . . . 1 . Combat Hostiles 1 | . . . . . 1 . Parts Fried 3 | . . . . . 3 . Impact Corruptions . | . . . . . . . Robots Melted . | . . . . . . . Combat Hostiles . | . . . . . . . Parts Melted 9 | . . . . . 9 . Heat Transferred 1477 | . 100 . . 148 1229 . Parts Sabotaged . | . . . . . . . Parts Stolen . | . . . . . . . Parts Stripped . | . . . . . . . Power Chain Reactions . | . . . . . . . Alert | -11 -10 -9 -9 -8 -7 -7 ------- Run | Yrd Mat Mat Min Mat Fac Was Maximum Alert Level 2 | . . . . 2 . . Low Security (%) 99 | 100 100 100 100 89 100 100 Level 1 . | . . . . 7 . . Level 2 . | . . . . 3 . . Level 3 . | . . . . . . . Level 4 . | . . . . . . . Level 5 . | . . . . . . . High Security . | . . . . . . . Max Security . | . . . . . . . Peak Influence 437 | . 119 190 66 437 198 23 Initial 198 | . . 45 66 . 198 23 Average 38 | . 11 66 7 47 49 7 Influence Increases 1426 | . 135 342 . 497 452 . Destroy 0b10 Robot/C 520 | . 60 120 . 180 160 . Destroy 0b10 Robot/NC 40 | . 15 20 . 5 . . Destroy Leader 124 | . 10 24 . 40 50 . Successful Hack 28 | . . . . . 28 . Disable Machine 150 | . 15 30 . 60 45 . Anti-Garrison Action 150 | . . . . 150 . . Destroy Structure 219 | . 20 88 . 62 49 . Lose Combat Pursuer 195 | . 15 60 . . 120 . Influence Decreases 1426 | . 26 281 170 60 822 67 Entered New Map 451 | . . 64 104 . 239 44 Time Decay 739 | . 26 207 66 60 357 23 Lost Part 230 | . . 10 . . 220 . Purge Threat 6 | . . . . . 6 . Squads Dispatched 16 | . 3 2 . 6 5 . Investigation 4 | . 2 . . 1 1 . Extermination 3 | . . . . . 3 . Reinforcement 6 | . 1 2 . 2 1 . Assault 2 | . . . . 2 . . Garrison 1 | . . . . 1 . . Intercept . | . . . . . . . Searches Triggered . | . . . . . . . Construction Impeded . | . . . . . . . Haulers Reinforced . | . . . . . . . Active Scanning Responses . | . . . . . . . Cargo Convoy Interrupts 1 | . . . . . 1 . Stealth | -11 -10 -9 -9 -8 -7 -7 --------- Run | Yrd Mat Mat Min Mat Fac Was Distress Signals 4 | . 1 2 . 1 . . Communications Jammed . | . . . . . . . Distress Signals . | . . . . . . . Times Spotted 54 | . 7 13 . 13 16 5 Peak Tracking Total 7 | . 5 4 . 7 4 5 Tactical Retreats 9 | . 1 2 . . 6 . Traps | -11 -10 -9 -9 -8 -7 -7 ------- Run | Yrd Mat Mat Min Mat Fac Was Traps Triggered 3 | . . . . 1 2 . Indirectly . | . . . . . . . Trap Hack Attempts . | . . . . . . . Triggered . | . . . . . . . Disarmed . | . . . . . . . Reprogrammed . | . . . . . . . Reused . | . . . . . . . Traps Extracted . | . . . . . . . Installed . | . . . . . . . Triggered . | . . . . . . . Most Traps Carried 1 | . . . 1 1 1 . Machines | -11 -10 -9 -9 -8 -7 -7 ---------- Run | Yrd Mat Mat Min Mat Fac Was Machines Disabled 11 | . 1 2 . 5 3 . Max in Single Turn 3 | . 1 2 . 2 3 . Garrison Access 1 | . . . . 1 . . Machines Repaired . | . . . . . . . Machines Dismantled . | . . . . . . . Machines Sabotaged . | . . . . . . . Overloaded Fab Kills . | . . . . . . . Hacking | -11 -10 -9 -9 -8 -7 -7 --------- Run | Yrd Mat Mat Min Mat Fac Was Machines Accessed 7 | . 2 1 . . 4 . Terminals 6 | . 2 1 . . 3 . Fabricators 1 | . . . . . 1 . Repair Stations . | . . . . . . . Recycling Units . | . . . . . . . Scanalyzers . | . . . . . . . Garrison Access . | . . . . . . . Total Hacks 16 | . 8 2 . . 6 . Successful 8 | . 2 2 . . 4 . Failed 8 | . 6 . . . 2 . Catastrophic 2 | . 1 . . . 1 . Database Lockouts . | . . . . . . . Manual . | . . . . . . . Terminals 15 | . 8 2 . . 5 . Fabricators 1 | . . . . . 1 . Repair Stations . | . . . . . . . Recycling Units . | . . . . . . . Scanalyzers . | . . . . . . . Garrison Access . | . . . . . . . Terminal Hacks 7 | . 2 2 . . 3 . Record 4 | . 1 1 . . 2 . Unreport Threat 1 | . . . . . 1 . Dispatch Records 1 | . . 1 . . . . Recall Reinforcements 1 | . 1 . . . . . Fabricator Hacks 1 | . . . . . 1 . Build 1 | . . . . . 1 . Repair Station Hacks . | . . . . . . . Recycling Unit Hacks . | . . . . . . . Scanalyzer . | . . . . . . . Garrison Access Hacks . | . . . . . . . Unauthorized Hacks . | . . . . . . . Terminals . | . . . . . . . Fabricators . | . . . . . . . Repair Stations . | . . . . . . . Recycling Units . | . . . . . . . Scanalyzers . | . . . . . . . Garrison Access . | . . . . . . . Data Cores Recovered 1 | . 1 . . . . . Used . | . . . . . . . Hacking Detections 6 | . 2 1 . . 3 . Full Trace Events 3 | . 2 . . . 1 . Feedback Events . | . . . . . . . Feedback Blocked . | . . . . . . . Robot Schematics Acquired . | . . . . . . . Robots Built . | . . . . . . . Authchips . | . . . . . . . Time . | . . . . . . . Total Robot Build Rating . | . . . . . . . Part Schematics Acquired . | . . . . . . . Parts Built 2 | . . . . . 2 . Authchips . | . . . . . . . Time 42 | . . . . . 42 . Total Part Build Rating 8 | . . . . . 8 . Parts Repaired . | . . . . . . . Time . | . . . . . . . Parts Recycled . | . . . . . . . Recycled Matter . | . . . . . . . Retrieved Matter . | . . . . . . . Retrieved Components . | . . . . . . . Parts Scanalyzed . | . . . . . . . Part Schematics Acquired . | . . . . . . . Parts Damaged . | . . . . . . . Bothacking | -11 -10 -9 -9 -8 -7 -7 ------------ Run | Yrd Mat Mat Min Mat Fac Was Used RIF Installer . | . . . . . . . Robots Hacked 1 | . . . . . 1 . Non-combat . | . . . . . . . Combat 1 | . . . . . 1 . Robot Hacks Applied 1 | . . . . . 1 . parse_system 1 | . . . . . 1 . Relay Couplers Released 3 | . . . . 3 . . Machine Destruction 3 | . . . . 3 . . Fabnet Peak Effective % . | . . . . . . . Robots Rewired . | . . . . . . . Allies Hacked . | . . . . . . . Hacks Repelled . | . . . . . . . Allies | -11 -10 -9 -9 -8 -7 -7 -------- Run | Yrd Mat Mat Min Mat Fac Was Total Allies . | . . . . . . . Largest Group . | . . . . . . . Highest-Rated Group . | . . . . . . . Highest-Rated Ally . | . . . . . . . Total Orders . | . . . . . . . Ally Attacks . | . . . . . . . Total Damage . | . . . . . . . Kills . | . . . . . . . Allies Corrupted . | . . . . . . . Allies Melted . | . . . . . . . Intel | -11 -10 -9 -9 -8 -7 -7 ------- Run | Yrd Mat Mat Min Mat Fac Was Active Infowar (turns) . | . . . . . . . Robot Analysis Total . | . . . . . . . Derelict Logs Recovered 1 | . . . 1 . . . Drone Launches . | . . . . . . . Drone Recoveries . | . . . . . . . Exploration | -11 -10 -9 -9 -8 -7 -7 ------------- Run | Yrd Mat Mat Min Mat Fac Was Turns Passed 3303 | 66 243 472 631 293 1497 101 Spaces Moved 2167 | 57 183 277 511 197 792 150 Core 133 | 20 . . . . 110 3 Treads 179 | . . . . . 179 . Legs 1455 | 37 183 277 511 197 250 . Wheels . | . . . . . . . Hover 400 | . . . . . 253 147 Flight . | . . . . . . . Fastest Speed 50 | 50 120 120 120 120 50 60 Average Speed 116 | 95 120 120 120 128 120 60 Slowest Speed 350 | 120 120 120 120 190 350 100 Overloaded Moves . | . . . . . . . Propulsion Burnouts . | . . . . . . . Robots Hopped . | . . . . . . . Potential Cave-ins . | . . . . . . . Cave-ins Triggered . | . . . . . . . Exploration Rate (%) 29 | 4 28 22 68 21 21 43 Regions Visited 6 Branch Regions 1 Pre-discovered Areas 1 | . . . 1 . . . Known Exits Taken . | . . . . . . . Unknown Exits Taken 5 | 1 1 1 1 1 . . Scrap Searched 1 | . . . 1 . . . Spaces Dug . | . . . . . . . Terrain Destroyed 275 | . 38 104 . 68 65 . Melee . | . . . . . . . Projectile 1 | . . . . . 1 . AOE 274 | . 38 104 . 68 64 . Terrain Rammed . | . . . . . . . Walls Destroyed . | . . . . . . . Machines Disabled . | . . . . . . . Actions | -11 -10 -9 -9 -8 -7 -7 --------- Run | Yrd Mat Mat Min Mat Fac Was Total 2828 | 68 200 381 529 217 1274 159 Wait 481 | . 6 65 13 . 397 . Move 2162 | 56 182 276 510 196 792 150 Hop . | . . . . . . . Pick Up 43 | 8 4 8 2 4 16 1 Fast Attach . | . . . . . . . Attach 36 | 4 2 3 . 4 19 4 Detach 5 | . . . . 1 2 2 Swap 8 | . . 5 . 2 1 . Drop 10 | . . 4 1 2 3 . Fire 77 | . 6 19 . 8 42 2 Melee . | . . . . . . . Ram . | . . . . . . . Kick 3 | . . 1 . . 2 . Crush . | . . . . . . . Escape Stasis . | . . . . . . . Rewire 3 | . . . 3 . . . Trap . | . . . . . . . Miscellaneous . | . . . . . . . Route ------- -11/Scrapyard -10/Materials -9/Materials -9/Mines -8/Materials -7/Factory -7/Waste History --------- Turn | Location | Event 8 | -11/Scrapyard | Discovered new exit (range 15) 67 | -11/Scrapyard | Entered Materials 270 | -10/Materials | Discovered new exit (range 14) 303 | -10/Materials | Build established: Mutant 310 | -10/Materials | Entered another Materials area 310 | -9/Materials | Evolved 2 slots: Utility x1, Weapon x1 759 | -9/Materials | Discovered new exit (range 15) 782 | -9/Materials | Entered Mines 922 | -9/Mines | Assembled infested the area 962 | -9/Mines | Found a Scrap Suit stashed away for nefarious purposes 1162 | -9/Mines | Found a hidden stash of uninstalled traps 1186 | -9/Mines | YI-UF0 nonchalantly dropped a Grenade Launcher on the ground 1377 | -9/Mines | Discovered new exit (range 7) 1413 | -9/Mines | Entered Materials 1413 | -8/Materials | Evolved 2 slots: Utility x1, Weapon x1 1667 | -8/Materials | Garrison activated, responded to threat 1667 | -8/Materials | Discovered new exit (range 10) 1706 | -8/Materials | Entered Factory 1706 | -7/Factory | Evolved 2 slots: Propulsion x1, Utility x1 1709 | -7/Factory | Destroyed 8 combat bots 1719 | -7/Factory | Build established: Tank 1924 | -7/Factory | Lost 6 parts (1p1n1u3w) 2008 | -7/Factory | Lost 6 parts (1p2n3w) 2249 | -7/Factory | Core integrity fell below 50% 2252 | -7/Factory | Build established: Mutant 2473 | -7/Factory | Fabricated Gatling Laser (x2) 3052 | -7/Factory | Cargo convoy interrupted 3166 | -7/Factory | Core integrity fell below 20% 3201 | -7/Factory | Lost 5 parts (4u1w) 3203 | -7/Factory | Sucked down chute 3203 | -7/Factory | Entered Waste 3221 | -7/Waste | Spotted C-40 Crusher 3256 | -7/Waste | Spotted C-40 Crusher 3269 | -7/Waste | Spotted C-40 Crusher 3278 | -7/Waste | Spotted C-40 Crusher 3278 | -7/Waste | Spotted C-40 Crusher 3304 | -7/Waste | Crushed by Compactor (1 part destroyed, 1 dropped) 3304 | -7/Waste | Destroyed by C-40 Crusher with Compactor Last Messages --------------- Sml. Storage Unit destroyed. K-01 Serf cleans the Matter Pump. System corrupted: Matter fused (-5). Gatling Laser destroyed. Sml. Battery destroyed. Acquired 8 matter. K-01 Serf cleans the Matter Pump. M-28 Smith repairs L-41 Fighter. Triggered Chute Trap. A hatch slides open and sucks a vortex of air into the floor. LOCATION=UNKNOWN GOAL=ESCAPE System corrupted: Substantial component data lost. Acquired Prototype Storage. Identified Imp. Matter Compressor. System corrupted: Component data lost. Cooling System crushed. Shock Rifle crushed. Map ----- +----------------------------------------------------+ | ?????????????????????????????????????????????????? | | ?????????????????????????????????????????????????? | | ?????????????????????????????????????????????????? | | ?????????????????????????????????????????????????? | | ?????????????????????????????????????????????????? | | ?????????????????????????????????????????????????? | | ?????????????????????????????????????????????????? | | ?????????????????????????????????????????????????? | | ?????????????????????????????????????????????????? | | ?????????????????????????????????????????????????? | | ?????????????????????????????????????????????????? | | ?????????????????????????????????????????????????? | | ?????????????????????????????????????????????????? | | ?????????????????????????????????????????????????? | | ?????????????????????????????????????????????????? | | ?????????????????????????????????????????????????? | | ?????????????????????????????????????????????????? | | ?????????????????????????????????????????????????? | | ?????????????????????????????????????????????????? | | ???????????????????????##########????????????????? | | ???????????????????????# #????????????????? | | ???????????????????????# #????????????????? | | ???????????????????????# CC #????????????????? | | ???????????????????????# CCCC #????????????????? | | ???????????????????????# CC #????????????????? | | ???????????????????????# @ #????????????????? | | ???????????????????????# CC #????????????????? | | ?????????????######????# CC #????????????????? | | ?????????????# #????### ###????????????????? | | ?????????????# #??????#CC #??????????????????? | | ?????????????# #??????#CCCC#??????????????????? | | ?????????????# #??????# CC#??????????????????? | | ???????????### ######## #??????????????????? | | ???????????# #??????????????????? | | ???????????# #??????????????????? | | ???????????# #??????????????????? | | ???????????# #??????????????????? | | ???????????### ######## #??????????????????? | | ?????????????# #??????# #??????????????????? | | ?????????????# #??????# #??????????????????? | | ?????????????# #??????# #??????????????????? | | ???????????### ######## ##?????????????????? | | ???????????# ????????????????? | | ???????????# ????????????????? | | ???????????# ????????????????? | | ???????????# ! ???????????????? | | ???????????### ######## #####??????????????? | | ###########??# #??????? #??????????????????? | | #??#[ #??????? ?#??????????????????? | | #??# #??????????????????????????????? | +----------------------------------------------------+ Best States ------------- Heat Dissipation 56 Energy Generation 16 Energy Capacity 490 Matter Stores 300 Matter Capacity 300 Sight Range 16 Terrain Scan Density 10 Additional Mass Support 9 Core Shielding 20 Evasion (%) 55 Recoil Reduction 1 Item Schematics ----------------- None Robot Schematics ------------------ None Fabricated ------------ Gatling Laser | x2 | -7/Factory | Preloaded Repaired ---------- Nothing Alien Tech Used ----------------- None Achievements -------------- Just What I Needed Challenges ------------ None Game ------ Seed BoreWeldingBlaster Manual? 0 Play Time 00:33:48 Cumulative 8.7 hours Start 2025.10.05 @ 17:10:31 End 2025.10.05 @ 19:37:18 Sessions 2 Manual Loads 0 Difficulty Rogue Special Mode None Game No. 21 Rogue 21 Adventurer 0 Explorer 0 Win Type - Total 0 Types 0/0/0/0/0/0/0/0/0/0 Lore% 9 Gallery% 15 Achievement% 13 Wizard Run 0 Options --------- Layout 1 ASCII 0 Keyboard 0 Movement Arrows Keybinds 0 Fullscreen 1 Font 24/Smallcaps Map View 50x35 Zoom Use 0% Tactical HUD 0 Map Filters NONE Filters NONE Steam 1 RUN: 73e5c05f-2a0a-43dc-a146-2d2a57eb21a9